bitfinex-derivatives/quotes_BTCF0:USTF0_20241213
["timestamp","ask_amount","ask_price","bid_price","bid_amount"]
[1734119068545,0.70833418,101280.0,101260.0,0.64390291]
[1734119068749,0.07909306,101270.0,101260.0,0.64390291]
[1734119068950,0.70833418,101280.0,101270.0,0.049372]
[1734119069458,0.70833418,101280.0,101270.0,0.549372]
[1734119069851,0.70833418,101280.0,101260.0,0.37512674]
[1734119070053,0.43115393,101270.0,101260.0,0.42450374]
[1734119070350,0.392,101270.0,101260.0,0.06898839]
[1734119070556,0.392,101270.0,101260.0,0.56898839]
[1734119070863,0.392,101270.0,101260.0,0.06898839]
[1734119071155,0.45341565,101270.0,101260.0,0.56898839]
[1734119071364,0.48391565,101270.0,101260.0,0.56898839]
[1734119071559,0.48391565,101270.0,101260.0,0.06898839]
[1734119071751,0.48391565,101270.0,101260.0,0.56898839]
[1734119072757,0.48391565,101270.0,101260.0,0.58244633]
[1734119073561,0.5947033,101270.0,101260.0,0.01345794]
[1734119073752,0.049377,101260.0,101250.0,0.5]
[1734119073949,0.5635083,101260.0,101240.0,0.549383]
[1734119074262,0.33731722,101250.0,101240.0,0.049383]
[1734119074462,0.41566459,101250.0,101240.0,0.549383]
[1734119074653,0.41566459,101250.0,101240.0,0.56874099]
[1734119074958,0.41566459,101250.0,101240.0,0.06874099]
[1734119075166,0.41566459,101250.0,101240.0,0.56874099]
[1734119075554,0.41566459,101250.0,101240.0,0.58204946]
[1734119077662,0.23932469,101250.0,101240.0,0.58204946]
[1734119077850,0.41566459,101250.0,101240.0,0.58204946]
[1734119078458,0.23932469,101250.0,101240.0,0.58204946]
[1734119078660,0.23932469,101250.0,101240.0,0.64346511]
[1734119079049,0.41566459,101250.0,101240.0,0.58204946]
[1734119079964,0.44766459,101250.0,101240.0,0.58204946]
[1734119080350,0.85784559,101250.0,101240.0,0.51380847]
[1734119080558,0.53459665,101250.0,101240.0,0.51380847]
[1734119080750,0.74074818,101250.0,101240.0,0.51380847]
[1734119081470,0.53459665,101250.0,101240.0,0.51330847]
[1734119082456,0.53459665,101250.0,101240.0,0.51380847]
[1734119083459,0.53459665,101250.0,101240.0,0.51330847]
[1734119084160,0.71071865,101250.0,101240.0,0.51330847]
[1734119084361,0.71071865,101250.0,101240.0,0.56319447]
[1734119085353,0.649303,101250.0,101240.0,0.56269447]
[1734119085557,0.71071865,101250.0,101240.0,0.56269447]
[1734119086467,0.599922,101250.0,101240.0,0.62461012]
[1734119086969,0.536922,101250.0,101240.0,0.62461012]
[1734119087370,0.536922,101250.0,101240.0,0.62411012]
[1734119088079,0.68375846,101250.0,101240.0,0.62411012]
[1734119088369,0.32295846,101250.0,101240.0,0.65661012]
[1734119088569,0.32295846,101250.0,101240.0,1.01741012]
[1734119088774,0.14683646,101250.0,101240.0,1.14192577]
[1734119089473,0.14683646,101250.0,101240.0,1.14142577]
[1734119090477,0.14683646,101250.0,101240.0,1.14192577]
[1734119092362,0.14683646,101250.0,101240.0,1.14142577]
[1734119096869,0.14683646,101250.0,101240.0,1.20284142]
[1734119096870,0.11762634,101250.0,101240.0,1.20284142]
[1734119097175,0.05094566,101250.0,101240.0,1.14142577]
[1734119097680,0.13917918,101250.0,101240.0,1.14142577]
[1734119098270,0.05094566,101250.0,101240.0,1.14142577]
[1734119099874,0.05094566,101250.0,101240.0,1.08001012]
[1734119102379,0.05094566,101250.0,101240.0,1.14142577]
[1734119102576,0.04008468,101250.0,101240.0,1.14142577]
[1734119102778,0.02878468,101250.0,101240.0,1.14142577]
[1734119107282,0.10576989,101250.0,101240.0,1.14142577]
[1734119107470,0.09180989,101250.0,101240.0,1.14142577]
[1734119107675,0.599122,101270.0,101240.0,1.14142577]
[1734119107981,0.599122,101270.0,101260.0,0.11079165]
[1734119108182,0.599122,101270.0,101260.0,0.1722073]
[1734119108384,0.599122,101270.0,101260.0,0.6722073]
[1734119108770,0.599122,101270.0,101260.0,0.1722073]
[1734119109178,0.0622,101270.0,101260.0,1.0330073]
[1734119109375,0.0301,101270.0,101260.0,0.5330073]
[1734119109577,0.207322,101280.0,101270.0,0.049372]
[1734119109779,0.0615,101280.0,101270.0,0.11078765]
[1734119109981,0.0615,101280.0,101270.0,0.61078765]
[1734119110381,0.0615,101280.0,101270.0,0.11078765]
[1734119110688,0.0615,101280.0,101270.0,0.61078765]
[1734119111187,0.0615,101280.0,101270.0,0.11078765]
[1734119111578,0.0615,101280.0,101270.0,0.61078765]
[1734119119587,0.062,101280.0,101270.0,0.61078765]
[1734119121590,0.0308,101280.0,101270.0,1.0330033]
[1734119122411,0.031,101290.0,101270.0,1.0330033]
[1734119122412,0.031,101290.0,101270.0,1.09441895]
[1734119122581,0.031,101290.0,101280.0,0.5329983]
[1734119123086,0.031,101290.0,101280.0,1.0329983]
[1734119124691,0.599722,101300.0,101280.0,1.0329983]
[1734119124892,0.599722,101300.0,101290.0,0.06141565]
[1734119125393,0.599722,101300.0,101290.0,0.56141565]
[1734119125794,0.599722,101300.0,101290.0,0.06141565]
[1734119126184,0.599722,101300.0,101290.0,0.56141565]
[1734119126385,0.64908,101300.0,101280.0,0.910167]
[1734119126587,0.64908,101300.0,101290.0,0.06141565]
[1734119126995,0.64908,101300.0,101290.0,0.56141565]
[1734119127386,0.64908,101300.0,101290.0,0.06141565]
[1734119127695,0.64908,101300.0,101290.0,0.61077765]
[1734119127886,0.64908,101300.0,101290.0,0.11077765]
[1734119128286,0.64908,101300.0,101290.0,0.61077765]
[1734119128488,0.64908,101300.0,101290.0,0.11077765]
[1734119128799,0.64908,101300.0,101290.0,0.61077765]
[1734119129185,0.64908,101300.0,101290.0,0.11077765]
[1734119129587,0.64908,101300.0,101290.0,0.61077765]
[1734119129788,0.64908,101300.0,101290.0,0.11077765]
[1734119129985,0.238922,101300.0,101290.0,0.11077765]
[1734119130186,0.35558324,101300.0,101290.0,1.0329933]
[1734119130390,0.0325,101300.0,101290.0,1.0329933]
[1734119130697,0.0325,101300.0,101290.0,0.5329933]
[1734119130998,0.0325,101300.0,101290.0,1.0329933]
[1734119133307,0.17924242,101310.0,101300.0,0.049357]
[1734119133595,0.21054242,101310.0,101300.0,0.6721883]
[1734119134002,0.21054242,101310.0,101300.0,0.1721883]
[1734119134391,0.21054242,101310.0,101300.0,0.6721883]
[1734119134602,0.21054242,101310.0,101300.0,0.1721883]
[1734119135103,0.21054242,101310.0,101300.0,0.6721883]
[1734119135291,0.38666442,101310.0,101300.0,0.1721883]
[1734119135496,0.38666442,101310.0,101300.0,0.6721883]
[1734119135899,0.38666442,101310.0,101300.0,0.1721883]
[1734119136305,0.38666442,101310.0,101300.0,0.6721883]
[1734119136506,0.38666442,101310.0,101300.0,0.1721883]
[1734119137005,0.38666442,101310.0,101300.0,0.6721883]
[1734119137207,0.38666442,101310.0,101300.0,0.1721883]
[1734119137601,0.38666442,101310.0,101300.0,0.6721883]
[1734119138103,0.38666442,101310.0,101300.0,0.68911066]
[1734119138401,0.23970318,101310.0,101300.0,0.68911066]
[1734119138604,0.24020318,101310.0,101300.0,0.68911066]
[1734119139705,0.23970318,101310.0,101300.0,0.68911066]
[1734119140608,0.24020318,101310.0,101300.0,0.68911066]
[1734119141608,0.23970318,101310.0,101300.0,0.68911066]
[1734119142611,0.24020318,101310.0,101300.0,0.68911066]
[1734119143614,0.23970318,101310.0,101300.0,0.68911066]
[1734119144609,0.24020318,101310.0,101300.0,0.68911066]
[1734119145598,0.23970318,101310.0,101300.0,0.68911066]
[1734119145794,0.49597367,101310.0,101300.0,0.53683496]
[1734119146008,0.53366765,101310.0,101300.0,0.01692236]
[1734119146305,0.049359,101300.0,101290.0,0.03296398]
[1734119146498,0.68299606,101300.0,101290.0,0.03296398]
[1734119146702,0.61724124,101300.0,101290.0,0.03296398]
[1734119147100,0.61724124,101300.0,101290.0,0.08232598]
[1734119149012,0.61724124,101300.0,101290.0,0.58232598]
[1734119149307,0.61724124,101300.0,101290.0,0.08232598]
[1734119149503,0.61724124,101300.0,101290.0,0.58232598]
[1734119149705,0.61724124,101300.0,101290.0,0.08232598]
[1734119150103,0.61724124,101300.0,101290.0,0.58232598]
[1734119150411,0.61724124,101300.0,101290.0,0.08232598]
[1734119150612,0.61724124,101300.0,101290.0,0.58232598]
[1734119151004,0.61724124,101300.0,101290.0,0.10252874]
[1734119151212,0.61724124,101300.0,101290.0,0.60252874]
[1734119151409,0.61724124,101300.0,101290.0,0.10252874]
[1734119151798,0.61724124,101300.0,101290.0,0.60252874]
[1734119152307,0.61724124,101300.0,101290.0,0.10252874]
[1734119152507,0.61724124,101300.0,101290.0,0.60252874]
[1734119154304,0.32352967,101300.0,101290.0,1.02474439]
[1734119154511,0.14714743,101300.0,101290.0,1.12074439]
[1734119155517,0.37352967,101310.0,101300.0,0.049357]
[1734119155716,0.37352967,101310.0,101300.0,0.1721883]
[1734119155918,0.37352967,101310.0,101300.0,0.6721883]
[1734119156215,0.37352967,101310.0,101300.0,0.1721883]
[1734119156615,0.37352967,101310.0,101300.0,0.6721883]
[1734119156809,0.37352967,101310.0,101300.0,0.61077265]
[1734119157010,0.37352967,101310.0,101300.0,0.11077265]
[1734119157213,0.37356199,101310.0,101300.0,0.61077265]
[1734119157518,0.37356199,101310.0,101300.0,0.6721883]
[1734119159222,0.22638224,101310.0,101300.0,0.6721883]
[1734119159814,0.0005,101320.0,101310.0,0.049352]
[1734119160118,0.392,101340.0,101330.0,0.049342]
[1734119160423,0.392,101340.0,101330.0,0.11075765]
[1734119161114,0.392,101340.0,101330.0,0.61075765]
[1734119161315,0.392,101340.0,101330.0,0.11075765]
[1734119163328,0.392,101340.0,101330.0,0.049342]
[1734119164720,0.3925,101340.0,101330.0,0.14282767]
[1734119164924,0.3925,101340.0,101330.0,0.64282767]
[1734119165318,0.3925,101340.0,101330.0,0.14282767]
[1734119165628,0.3925,101340.0,101330.0,0.64282767]
[1734119165922,0.3925,101340.0,101330.0,0.14282767]
[1734119166310,0.3925,101340.0,101330.0,0.64282767]
[1734119167524,0.0317,101340.0,101330.0,1.01905989]
[1734119167728,0.11806651,101340.0,101330.0,1.01905989]
[1734119168028,0.0005,101340.0,101330.0,1.01905989]
[1734119171616,0.0005,101340.0,101330.0,0.65825989]
[1734119171824,0.0005,101340.0,101330.0,1.01905989]
[1734119171825,0.0338,101340.0,101330.0,1.01905989]
[1734119172815,0.3946,101340.0,101330.0,0.65825989]
[1734119173633,0.51216651,101340.0,101330.0,0.15825989]
[1734119175231,0.51216651,101340.0,101330.0,0.65825989]
[1734119175424,0.51216651,101340.0,101330.0,0.67813932]
[1734119175727,0.51216651,101340.0,101330.0,0.17813932]
[1734119176124,0.51216651,101340.0,101330.0,0.67813932]
[1734119176326,0.51216651,101340.0,101330.0,0.17813932]
[1734119176721,0.51216651,101340.0,101330.0,0.67813932]
[1734119179424,0.0018,101340.0,101330.0,0.67813932]
[1734119179631,0.0018,101340.0,101330.0,1.13273932]
[1734119179817,0.0018,101340.0,101330.0,0.77193932]
[1734119180224,0.11936651,101340.0,101330.0,0.77193932]
[1734119182122,0.11936651,101340.0,101330.0,0.67813932]
[1734119182324,0.15076651,101340.0,101330.0,0.67813932]
[1734119182630,0.15026651,101340.0,101330.0,0.67813932]
[1734119182932,0.15026651,101340.0,101330.0,0.68013932]
[1734119183126,0.15156651,101340.0,101330.0,0.68013932]
[1734119185256,0.15156651,101340.0,101330.0,0.70931203]
[1734119187326,0.034,101340.0,101330.0,0.70931203]
[1734119187630,0.034,101340.0,101330.0,0.58665365]
[1734119187825,1.10431852,101340.0,101330.0,0.01743222]
[1734119188027,0.049342,101330.0,101320.0,0.0005]
[1734119188226,0.69041563,101330.0,101320.0,0.0005]
[1734119188527,0.69041563,101330.0,101320.0,0.06182919]
[1734119188528,0.61804573,101330.0,101320.0,0.06182919]
[1734119188732,0.67937492,101330.0,101320.0,0.06132919]
[1734119189226,0.62064573,101330.0,101320.0,0.11067619]
[1734119189431,0.62064573,101330.0,101320.0,0.11167619]
[1734119189626,0.62064573,101330.0,101320.0,0.11217619]
[1734119189821,0.57130373,101330.0,101320.0,0.11217619]
[1734119190026,0.57130373,101330.0,101320.0,0.67350538]
[1734119190228,0.71862034,101330.0,101320.0,0.67350538]
[1734119190428,0.71862034,101330.0,101320.0,0.17350538]
[1734119190429,0.54241661,101330.0,101320.0,0.17350538]
[1734119190627,0.54241661,101330.0,101320.0,0.17300538]
[1734119190925,0.54241661,101330.0,101320.0,0.67300538]
[1734119191135,0.54241661,101330.0,101320.0,0.14384085]
[1734119191534,0.54241661,101330.0,101320.0,0.65904075]
[1734119191722,0.54241661,101330.0,101320.0,0.15954075]
[1734119192128,0.26776056,101330.0,101320.0,1.02034075]
[1734119192426,0.12044395,101330.0,101320.0,0.55124075]
[1734119192733,0.12044395,101330.0,101320.0,1.08354075]
[1734119193135,0.12044395,101330.0,101320.0,0.72274075]
[1734119193435,0.26776056,101330.0,101320.0,0.72274075]
[1734119193632,0.12044395,101330.0,101320.0,0.72324075]
[1734119194133,0.26776056,101330.0,101320.0,0.72324075]
[1734119194635,0.51071661,101330.0,101320.0,0.72324075]
[1734119195732,0.51201661,101330.0,101320.0,0.72324075]
[1734119196836,0.51201661,101330.0,101320.0,0.72274075]
[1734119198233,0.51201661,101330.0,101320.0,0.68994075]
[1734119198532,0.51201661,101330.0,101320.0,0.65904075]
[1734119198730,0.54281661,101330.0,101320.0,0.65904075]
[1734119201029,0.71902034,101330.0,101320.0,0.65904075]
[1734119202533,0.54281661,101330.0,101320.0,0.65904075]
[1734119205843,0.18201661,101330.0,101320.0,0.65904075]
[1734119206143,0.15121661,101330.0,101320.0,0.65904075]
[1734119206737,0.26907643,101330.0,101320.0,0.65904075]
[1734119207133,0.15121661,101330.0,101320.0,0.65904075]
[1734119207753,0.26908032,101330.0,101320.0,1.01984075]
[1734119208039,0.12176371,101330.0,101320.0,1.01984075]
[1734119208644,0.13148623,101340.0,101330.0,0.049342]
[1734119208850,0.0316,101350.0,101340.0,0.049337]
[1734119209145,0.0316,101350.0,101340.0,1.0971247]
[1734119209645,0.0316,101350.0,101340.0,0.5971247]
[1734119209646,0.0321,101350.0,101340.0,0.5971247]
[1734119209847,0.0321,101350.0,101340.0,1.0971247]
[1734119210035,0.0321,101350.0,101340.0,1.0981247]
[1734119210739,0.0316,101350.0,101340.0,1.0981247]
[1734119210939,0.17620373,101360.0,101350.0,0.049332]
[1734119211159,0.0302,101360.0,101350.0,0.14282585]
[1734119211441,0.0302,101360.0,101350.0,0.64282585]
[1734119211643,0.0302,101360.0,101350.0,0.14282585]
[1734119211846,0.062,101360.0,101350.0,0.14282585]
[1734119212140,0.062,101360.0,101350.0,0.64282585]
[1734119212341,0.062,101360.0,101350.0,0.14282585]
[1734119212535,0.062,101360.0,101350.0,0.64382585]
[1734119213439,0.39488034,101370.0,101360.0,0.049328]
[1734119213639,0.39488034,101370.0,101360.0,0.14282185]
[1734119213841,0.39488034,101370.0,101360.0,0.64282185]
[1734119214062,0.39488034,101370.0,101360.0,0.14282185]
[1734119214237,0.36228034,101370.0,101360.0,0.14282185]
[1734119214431,0.36228034,101370.0,101360.0,0.64282185]
[1734119214634,0.3608,101370.0,101360.0,0.64282185]
[1734119214932,0.3608,101370.0,101360.0,0.14282185]
[1734119215134,0.3608,101370.0,101360.0,0.64282185]
[1734119215741,0.4248,101380.0,101370.0,0.049323]
[1734119215938,0.4248,101380.0,101370.0,0.14281685]
[1734119216133,0.4248,101380.0,101370.0,0.64281685]
[1734119216537,0.4248,101380.0,101370.0,0.14281685]
[1734119216737,0.4261,101380.0,101370.0,0.64281685]
[1734119217646,0.4261,101380.0,101370.0,0.64381685]
[1734119220349,0.475418,101380.0,101370.0,0.001]
[1734119220648,0.0005,101360.0,101350.0,0.56493701]
[1734119220849,0.3626,101360.0,101350.0,0.56493701]
[1734119221344,0.3953,101360.0,101350.0,0.56493701]
[1734119221743,0.3948,101360.0,101350.0,0.56493701]
[1734119221940,0.3948,101360.0,101350.0,0.65843086]
[1734119222339,0.3948,101360.0,101350.0,0.65943086]
[1734119222846,0.3953,101360.0,101350.0,0.65943086]
[1734119223048,0.3953,101360.0,101350.0,1.02023086]
[1734119223049,0.0018,101360.0,101350.0,1.02023086]
[1734119223348,0.0018,101360.0,101350.0,1.05313086]
[1734119223548,0.0018,101360.0,101350.0,1.08493086]
[1734119223750,0.0013,101360.0,101350.0,1.08493086]
[1734119224746,0.3626,101360.0,101350.0,0.72413086]
[1734119224945,0.0018,101360.0,101350.0,1.08493086]
[1734119226751,0.0005,101360.0,101350.0,1.11693086]
[1734119227753,0.08815268,101370.0,101360.0,0.049328]
[1734119227949,0.08815268,101370.0,101360.0,0.14282185]
[1734119228156,0.08815268,101370.0,101360.0,0.64282185]
[1734119228450,0.44895268,101370.0,101360.0,0.049328]
[1734119228646,0.47985268,101370.0,101360.0,0.549328]
[1734119228854,0.47985268,101370.0,101360.0,0.550328]
[1734119229050,0.47985268,101370.0,101360.0,0.64382185]
[1734119229743,0.47935268,101370.0,101360.0,0.64382185]
[1734119230455,0.3912,101370.0,101360.0,0.64382185]
[1734119230655,0.47988563,101370.0,101360.0,0.64382185]
[1734119231055,0.47988563,101370.0,101360.0,0.550328]
[1734119231246,0.3917,101370.0,101360.0,0.550328]
[1734119231453,0.53451685,101370.0,101360.0,0.050328]
[1734119231651,0.53401685,101370.0,101360.0,0.050328]
[1734119231854,0.440523,101370.0,101360.0,0.050328]
[1734119232255,0.61672673,101370.0,101360.0,0.050328]
[1734119232452,0.71022058,101370.0,101360.0,0.050328]
[1734119232755,0.61722673,101370.0,101360.0,0.050328]
[1734119233755,0.61672673,101370.0,101360.0,0.050328]
[1734119234152,0.61802673,101370.0,101360.0,0.050328]
[1734119234658,0.61852673,101370.0,101360.0,0.050328]
[1734119235742,0.56870373,101370.0,101360.0,0.050328]
[1734119236346,0.56870373,101370.0,101360.0,0.550328]
[1734119236550,0.56916427,101370.0,101360.0,0.550328]
[1734119236752,0.56916427,101370.0,101360.0,0.050328]
[1734119237056,0.56916427,101370.0,101360.0,0.550328]
[1734119237456,0.56916427,101370.0,101360.0,0.050328]
[1734119237852,0.56916427,101370.0,101360.0,0.550328]
[1734119238048,0.56916427,101370.0,101360.0,0.14382185]
[1734119238263,0.53876427,101370.0,101360.0,0.14382185]
[1734119238561,0.3621,101370.0,101360.0,0.64382185]
[1734119238761,0.3621,101370.0,101360.0,0.14382185]
[1734119238762,0.5094344,101370.0,101360.0,0.14382185]
[1734119239062,0.5094344,101370.0,101360.0,0.64382185]
[1734119239360,0.5094344,101370.0,101360.0,0.14382185]
[1734119239764,0.5094344,101370.0,101360.0,0.64382185]
[1734119241760,0.1486344,101370.0,101360.0,0.64382185]
[1734119244271,0.1486344,101370.0,101360.0,1.00462185]
[1734119245170,0.0013,101370.0,101360.0,1.00462185]
[1734119247780,0.08970334,101370.0,101360.0,1.00462185]
[1734119248082,0.0013,101370.0,101360.0,1.00462185]
[1734119249469,0.0013,101370.0,101360.0,1.02473197]
[1734119249974,0.0026,101370.0,101360.0,1.02473197]
[1734119251970,0.0026,101370.0,101360.0,0.57043812]
[1734119252176,0.5107344,101370.0,101360.0,0.57043812]
[1734119252375,0.5734344,101370.0,101360.0,0.57043812]
[1734119252883,0.75009867,101370.0,101360.0,0.57043812]
[1734119253583,0.5734344,101370.0,101360.0,0.57043812]
[1734119255182,0.69625812,101370.0,101360.0,0.57043812]
[1734119255391,0.74558112,101370.0,101360.0,0.001]
[1734119256386,0.74558112,101370.0,101360.0,0.050328]
[1734119256589,0.65208727,101370.0,101360.0,0.050328]
[1734119270791,0.65208727,101370.0,101360.0,0.550328]
[1734119271195,0.60276427,101370.0,101360.0,0.64382185]
[1734119271386,0.68741899,101370.0,101360.0,0.64382185]
[1734119271592,0.51075472,101370.0,101360.0,0.64382185]
[1734119272285,0.14995472,101370.0,101360.0,0.911128]
[1734119272494,0.26784524,101370.0,101360.0,0.911128]
[1734119272695,0.26784524,101370.0,101360.0,0.550328]
[1734119272696,0.14995472,101370.0,101360.0,0.550328]
[1734119275194,0.14995472,101370.0,101360.0,1.00462185]
[1734119275501,0.26783874,101370.0,101360.0,1.00462185]
[1734119275802,0.2089028,101370.0,101360.0,1.00462185]
[1734119276393,0.12048402,101370.0,101360.0,1.00462185]
[1734119279197,0.12048402,101370.0,101360.0,0.911128]
[1734119280700,0.12048402,101370.0,101360.0,1.00462185]
[1734119282802,0.26783874,101370.0,101360.0,1.00462185]
[1734119283204,0.12048402,101370.0,101360.0,1.00462185]
[1734119283402,0.2089255,101370.0,101360.0,1.00462185]
[1734119283600,0.12048402,101370.0,101360.0,1.02405475]
[1734119284400,0.62863874,101370.0,101360.0,0.5697609]
[1734119284601,0.79824199,101370.0,101360.0,0.550328]
[1734119285105,0.83034199,101370.0,101360.0,0.550328]
[1734119286810,0.78101899,101370.0,101360.0,0.550328]
[1734119287308,0.60435472,101370.0,101360.0,0.550328]
[1734119288105,0.78101899,101370.0,101360.0,0.550328]
[1734119288800,0.83034199,101370.0,101360.0,0.550328]
[1734119290215,0.92383584,101370.0,101360.0,0.550328]
[1734119290512,0.68298727,101370.0,101360.0,0.050328]
[1734119291705,0.68329915,101370.0,101350.0,0.53952322]
[1734119291899,0.51088048,101360.0,101350.0,0.53902322]
[1734119292103,0.51088048,101360.0,101350.0,0.05672844]
[1734119292404,0.51088048,101360.0,101350.0,0.55672844]
[1734119292811,0.51088048,101360.0,101350.0,0.55722844]
[1734119293105,0.51088048,101360.0,101350.0,0.55822844]
[1734119294012,0.51088048,101360.0,101350.0,0.55772844]
[1734119294902,0.51088048,101360.0,101350.0,0.55822844]
[1734119295910,0.51088048,101360.0,101350.0,0.55772844]
[1734119296810,0.51088048,101360.0,101350.0,0.55822844]
[1734119297213,0.51088048,101360.0,101350.0,0.61954777]
[1734119297804,0.51088048,101360.0,101350.0,0.61904777]
[1734119299015,0.51088048,101360.0,101350.0,0.61954777]
[1734119299715,0.51088048,101360.0,101350.0,0.55822844]
[1734119301710,0.57219981,101360.0,101350.0,0.55822844]
[1734119301915,0.57219981,101360.0,101350.0,0.55772844]
[1734119302111,0.79850396,101360.0,101350.0,0.55772844]
[1734119302308,0.85982329,101360.0,101350.0,0.51870522]
[1734119302506,0.79850396,101360.0,101350.0,0.56803822]
[1734119302713,0.62152781,101360.0,101350.0,0.56803822]
[1734119303112,0.57219981,101360.0,101350.0,0.56803822]
[1734119304214,0.62883106,101360.0,101350.0,0.62935755]
[1734119304419,0.62883106,101360.0,101350.0,0.69235755]
[1734119304621,0.20901671,101360.0,101350.0,0.69235755]
[1734119304818,0.20901671,101360.0,101350.0,1.05315755]
[1734119305119,0.20901671,101360.0,101350.0,1.11447688]
[1734119305419,0.32445663,101370.0,101360.0,0.049328]
[1734119305420,0.11351963,101370.0,101360.0,0.049328]
[1734119305622,0.11351963,101370.0,101360.0,0.53843544]
[1734119305913,0.47970763,101380.0,101360.0,1.03843544]
[1734119306219,0.47970763,101380.0,101370.0,0.049323]
[1734119306616,0.47970763,101380.0,101370.0,0.549323]
[1734119306817,0.48020763,101380.0,101370.0,0.049323]
[1734119307118,0.48020763,101380.0,101370.0,0.549323]
[1734119307509,0.48020763,101380.0,101370.0,0.049323]
[1734119307937,0.47970763,101380.0,101370.0,0.549323]
[1734119308718,0.47970763,101380.0,101370.0,0.550323]
[1734119309016,0.48020763,101380.0,101370.0,0.550323]
[1734119309419,0.57361507,101380.0,101370.0,0.550323]
[1734119309915,0.57311507,101380.0,101370.0,0.550323]
[1734119310812,0.57361507,101380.0,101370.0,0.550323]
[1734119311922,0.57311507,101380.0,101370.0,0.550323]
[1734119312318,0.57311507,101380.0,101370.0,0.5677694]
[1734119312716,0.75009122,101380.0,101370.0,0.5677694]
[1734119312919,0.75059122,101380.0,101370.0,0.5677694]
[1734119313325,0.63168359,101380.0,101370.0,0.5677694]
[1734119313517,0.63168359,101380.0,101370.0,0.0677694]
[1734119313824,0.50352544,101380.0,101370.0,0.0677694]
[1734119314523,0.68048726,101380.0,101370.0,0.0677694]
[1734119314911,0.68098726,101380.0,101370.0,0.0677694]
[1734119315328,0.50402544,101380.0,101370.0,0.0677694]
[1734119315623,0.68096858,101380.0,101370.0,0.0677694]
[1734119319422,0.50402544,101380.0,101370.0,0.0677694]
[1734119319627,0.50402544,101380.0,101370.0,0.050323]
[1734119319817,0.71017697,101380.0,101370.0,0.050323]
[1734119320420,0.50402544,101380.0,101370.0,0.050323]
[1734119322825,0.3613,101380.0,101370.0,0.050323]
[1734119323025,0.3613,101380.0,101370.0,0.550323]
[1734119323227,0.53825991,101380.0,101370.0,0.050323]
[1734119323622,0.53825991,101380.0,101370.0,0.550323]
[1734119323931,0.53775991,101380.0,101370.0,0.050323]
[1734119324229,0.53775991,101380.0,101370.0,0.550323]
[1734119324616,0.53775991,101380.0,101370.0,0.050323]
[1734119324822,0.53775991,101380.0,101370.0,0.64373044]
[1734119325019,0.17750513,101390.0,101380.0,0.049318]
[1734119325224,0.10147983,101400.0,101380.0,0.53742544]
[1734119325529,0.0631722,101400.0,101390.0,0.50352044]
[1734119325928,0.0631722,101400.0,101390.0,1.00352044]
[1734119327737,0.0631722,101400.0,101390.0,1.00452044]
[1734119328626,0.06169237,101400.0,101390.0,1.00452044]
[1734119328824,0.3608,101420.0,101390.0,1.00452044]
[1734119328825,0.3608,101420.0,101390.0,1.05383344]
[1734119329021,0.3608,101420.0,101410.0,0.049304]
[1734119329524,0.3608,101420.0,101410.0,0.549304]
[1734119329727,0.3608,101420.0,101410.0,0.049304]
[1734119330129,0.3608,101420.0,101410.0,0.549304]
[1734119330333,0.3608,101420.0,101410.0,0.049304]
[1734119330533,0.3608,101420.0,101410.0,0.050304]
[1734119330725,0.3608,101420.0,101410.0,0.550304]
[1734119330930,0.74870857,101430.0,101410.0,0.550304]
[1734119331128,0.3608,101420.0,101410.0,0.14371144]
[1734119331431,0.429,101430.0,101420.0,0.049299]
[1734119331833,0.429,101430.0,101420.0,0.549299]
[1734119332033,0.52240744,101430.0,101420.0,0.049299]
[1734119332234,0.429,101430.0,101420.0,0.049299]
[1734119332435,0.429,101430.0,101420.0,0.549299]
[1734119332633,0.429,101430.0,101420.0,0.049299]
[1734119333036,0.429,101430.0,101420.0,0.549299]
[1734119333235,0.429,101430.0,101420.0,0.049299]
[1734119333638,0.429,101430.0,101420.0,0.549299]
[1734119333938,0.429,101430.0,101420.0,0.050299]
[1734119334239,0.429,101430.0,101420.0,0.550299]
[1734119334631,0.429,101430.0,101420.0,0.050299]
[1734119335034,0.429,101430.0,101420.0,0.550299]
[1734119335233,0.429,101430.0,101420.0,0.050299]
[1734119335737,0.429,101430.0,101420.0,0.550299]
[1734119336038,0.429,101430.0,101420.0,0.050299]
[1734119336228,0.429,101430.0,101420.0,0.550299]
[1734119336626,0.429,101430.0,101420.0,0.050299]
[1734119336832,0.57170144,101430.0,101420.0,0.550299]
[1734119337030,0.57170144,101430.0,101420.0,0.050299]
[1734119337227,0.049299,101420.0,101410.0,0.49284075]
[1734119337432,0.410099,101420.0,101410.0,0.049303]
[1734119337733,0.410099,101420.0,101410.0,0.549303]
[1734119338137,0.410099,101420.0,101410.0,0.049303]
[1734119338338,0.410099,101420.0,101410.0,0.550303]
[1734119338841,0.410099,101420.0,101410.0,0.050303]
[1734119339042,0.410099,101420.0,101410.0,0.550303]
[1734119339439,0.410099,101420.0,101410.0,0.050303]
[1734119339844,0.410099,101420.0,101410.0,0.550303]
[1734119340539,0.50350644,101420.0,101410.0,0.050303]
[1734119341043,0.3608,101420.0,101410.0,0.64371044]
[1734119341246,0.3608,101420.0,101410.0,0.14371044]
[1734119341632,0.3608,101420.0,101410.0,0.550303]
[1734119341834,0.3608,101420.0,101410.0,0.050303]
[1734119342240,0.3608,101420.0,101410.0,0.550303]
[1734119342448,0.429,101430.0,101420.0,0.049299]
[1734119342635,0.3608,101430.0,101420.0,0.14270644]
[1734119342839,0.3608,101430.0,101420.0,0.67560644]
[1734119343135,0.3608,101430.0,101420.0,0.17560644]
[1734119343535,0.3608,101430.0,101420.0,0.67560644]
[1734119343736,0.3608,101430.0,101420.0,0.17560644]
[1734119343953,0.3608,101430.0,101420.0,0.17660644]
[1734119344140,0.3608,101430.0,101420.0,0.67660644]
[1734119344445,0.3608,101440.0,101430.0,0.049294]
[1734119344848,0.3608,101440.0,101430.0,0.549294]
[1734119345449,0.3608,101440.0,101430.0,0.550294]
[1734119346144,0.50771073,101440.0,101430.0,0.550294]
[1734119346653,0.50771073,101440.0,101430.0,0.64370144]
[1734119346950,0.3608,101440.0,101430.0,0.550294]
[1734119347247,0.50771073,101440.0,101430.0,0.550294]
[1734119350650,0.50771073,101440.0,101430.0,0.64370144]
[1734119350852,0.50771073,101440.0,101430.0,0.66502268]
[1734119351051,0.50771073,101440.0,101430.0,0.57161524]
[1734119351647,0.68471586,101440.0,101430.0,0.57161524]
[1734119352146,0.53780513,101440.0,101430.0,0.57161524]
[1734119352950,0.53830513,101440.0,101430.0,0.57161524]
[1734119353351,0.3613,101440.0,101430.0,0.4580027]
[1734119353646,0.53795714,101440.0,101430.0,0.5072967]